fUSD/lending_fUSD_20240523
["ID","MTS","AMOUNT","RATE_DAILY","PERIOD"]
[327749188,1716426680719,-500.0,0.00022739,2]
[327749189,1716426680729,-500.0,0.00022739,2]
[327749190,1716426680738,-482.02544153,0.00022739,2]
[327749191,1716426680749,-589.99,0.00022739,2]
[327749192,1716426680760,-882.94,0.00022739,2]
[327749193,1716426680770,-500.0,0.00022739,2]
[327749194,1716426680780,-500.0,0.00022739,2]
[327749195,1716426680790,-500.0,0.00022739,2]
[327749196,1716426680800,-500.0,0.00022739,2]
[327749197,1716426680810,-514.64055608,0.00022739,2]
[327749198,1716426680819,-500.0,0.00022739,2]
[327749199,1716426680830,-500.0,0.00022739,2]
[327749200,1716426680842,-611.45,0.00022739,2]
[327749201,1716426680852,-500.0,0.00022739,2]
[327749202,1716426680861,-500.0,0.00022739,2]
[327749203,1716426680871,-500.0,0.00022739,2]
[327749204,1716426680885,-500.0,0.00022739,2]
[327749205,1716426680895,-732.92,0.00022739,2]
[327749206,1716426680906,-500.0,0.00022739,2]
[327749207,1716426680915,-500.0,0.00022739,2]
[327749208,1716426680925,-500.0,0.00022739,2]
[327749209,1716426680935,-500.0,0.00022739,2]
[327749210,1716426680945,-500.0,0.00022739,2]
[327749211,1716426680954,-500.0,0.00022739,2]
[327749212,1716426680964,-500.0,0.00022739,2]
[327749213,1716426680974,-500.0,0.00022739,2]
[327749214,1716426680984,-500.0,0.00022739,2]
[327749215,1716426680994,-500.0,0.00022739,2]
[327749216,1716426681004,-151.0,0.00022739,7]
[327749217,1716426681014,-151.0,0.00022739,7]
[327749218,1716426681024,-500.0,0.00022739,2]
[327749219,1716426681034,-500.0,0.00022739,2]
[327749220,1716426681043,-500.0,0.00022739,2]
[327749221,1716426681053,-500.0,0.00022739,2]
[327749222,1716426681063,-668.73,0.00022739,2]
[327749223,1716426681072,-500.0,0.00022739,2]
[327749224,1716426681082,-500.0,0.00022739,2]
[327749225,1716426681092,-500.0,0.00022739,2]
[327749226,1716426681107,-500.0,0.00022739,2]
[327749227,1716426681116,-500.0,0.00022739,2]
[327749228,1716426681131,-560.24,0.00022739,2]
[327749229,1716426681141,-560.48053535,0.00022739,2]
[327749230,1716426681150,-509.72438434,0.00022739,2]
[327749231,1716426681160,-500.0,0.00022739,2]
[327749232,1716426681169,-500.0,0.00022739,2]
[327749233,1716426681182,-500.0,0.00022739,2]
[327749234,1716426681191,-500.0,0.00022739,2]
[327749235,1716426681201,-511.46408481,0.00022739,2]
[327749236,1716426681210,-521.91795277,0.00022739,2]
[327749237,1716426681220,-500.0,0.00022739,2]
[327749238,1716426681229,-755.48,0.00022739,2]
[327749239,1716426681239,-500.0,0.00022739,2]
[327749240,1716426681248,-1047.81,0.00022739,2]
[327749241,1716426681258,-500.0,0.00022739,2]
[327749242,1716426681267,-392.53,0.00022739,2]
[327749243,1716426681276,-500.0,0.00022739,2]
[327749244,1716426681286,-500.0,0.00022739,2]
[327749245,1716426681295,-603.97,0.00022739,2]
[327749246,1716426681305,-500.0,0.00022739,2]
[327749247,1716426681314,-500.0,0.00022739,2]
[327749248,1716426681324,-500.0,0.00022739,2]
[327749249,1716426681334,-500.0,0.00022739,2]
[327749250,1716426681343,-500.0,0.00022739,2]
[327749251,1716426681352,-591.43065557,0.00022739,2]
[327749252,1716426681362,-500.0,0.00022739,2]
[327749253,1716426681372,-315.079495,0.00022739,7]
[327749254,1716426681387,-500.0,0.00022739,2]
[327749255,1716426681398,-500.0,0.00022739,2]
[327749256,1716426681407,-315.079495,0.00022739,7]
[327749257,1716426681417,-500.0,0.00022739,2]
[327749258,1716426681427,-500.0,0.00022739,2]
[327749259,1716426681437,-1095.67,0.00022739,2]
[327749260,1716426681446,-500.0,0.00022739,2]
[327749261,1716426681456,-500.0,0.00022739,2]
[327749262,1716426681637,-315.079495,0.00022739,7]
[327749263,1716426681647,-500.0,0.00022739,2]
[327749264,1716426681656,-315.079495,0.00022739,7]
[327749265,1716426681665,-500.0,0.00022739,2]
[327749266,1716426681674,-500.0,0.00022739,2]
[327749267,1716426681684,-500.0,0.00022739,2]
[327749268,1716426681693,-1206.72,0.00022739,2]
[327749269,1716426681702,-253.0493629,0.00022739,2]
[327749270,1716426681711,-500.0,0.00022739,2]
[327749271,1716426681720,-537.29,0.00022739,2]
[327749272,1716426681730,-248.976468,0.00022739,7]
[327749273,1716426681742,-500.0,0.00022739,2]
[327749274,1716426681754,-248.976468,0.00022739,7]
[327749275,1716426681763,-500.0,0.00022739,2]
[327749276,1716426681772,-813.17,0.00022739,2]
[327749277,1716426681781,-500.0,0.00022739,2]
[327749278,1716426681793,-500.0,0.00022739,2]
[327749279,1716426681802,-300.80749304,0.00022739,2]
[327749280,1716426681811,-248.976468,0.00022739,7]
[327749281,1716426681820,-654.58,0.00022739,2]
[327749282,1716426681832,-248.976478,0.00022739,7]
[327749283,1716426681842,-159.09142697,0.00022739,2]
[327749284,1716426681851,-500.0,0.00022739,2]
[327749285,1716426681860,-500.0,0.00022739,2]
[327749286,1716426681869,-958.93,0.00022739,2]
[327749287,1716426681882,-500.0,0.00022739,2]
[327749288,1716426681891,-500.0,0.00022739,2]
[327749289,1716426681901,-500.0,0.00022739,2]
[327749290,1716426681910,-500.0,0.00022739,2]
[327749291,1716426681919,-500.0,0.00022739,2]
[327749292,1716426681929,-500.0,0.00022739,2]
[327749293,1716426681938,-500.0,0.00022739,2]
[327749294,1716426681946,-729.95,0.00022739,2]
[327749295,1716426681956,-824.8,0.00022739,2]
[327749296,1716426681964,-500.0,0.00022739,2]
[327749297,1716426681974,-500.0,0.00022739,2]
[327749298,1716426681983,-151.0,0.00022739,7]
[327749299,1716426681992,-151.0,0.00022739,7]
[327749300,1716426682001,-510.36,0.00022739,2]
[327749301,1716426682010,-599.7608775,0.00022739,2]
[327749302,1716426682019,-500.0,0.00022739,2]
[327749303,1716426682028,-898.13,0.00022739,2]
[327749304,1716426682038,-791.66,0.00022739,2]
[327749305,1716426682047,-762.15,0.00022739,2]
[327749306,1716426682056,-500.0,0.00022739,2]
[327749307,1716426682066,-589.99394347,0.00022739,2]
[327749308,1716426682076,-500.0,0.00022739,2]
[327749309,1716426682085,-500.0,0.00022739,2]
[327749310,1716426682094,-500.0,0.00022739,2]
[327749311,1716426682107,-500.0,0.00022739,2]
[327749312,1716426682116,-1053.03,0.00022739,2]
[327749313,1716426682129,-2704.12,0.00022739,2]
[327749314,1716426682138,-500.0,0.00022739,2]
[327749315,1716426682147,-500.0,0.00022739,2]
[327749316,1716426682156,-500.0,0.00022739,2]
[327749317,1716426682166,-500.0,0.00022739,2]
[327749318,1716426682175,-589.05508791,0.00022739,2]
[327749319,1716426682184,-1278.75,0.00022739,2]
[327749320,1716426682193,-500.0,0.00022739,2]
[327749321,1716426682203,-500.0,0.00022739,2]
[327749322,1716426682212,-500.0,0.00022739,2]
[327749323,1716426682221,-500.0,0.00022739,2]
[327749324,1716426682231,-508.75,0.00022739,2]
[327749325,1716426682240,-500.0,0.00022739,2]
[327749326,1716426682250,-815.24,0.00022739,2]
[327749327,1716426682259,-500.0,0.00022739,2]
[327749328,1716426682269,-500.0,0.00022739,2]
[327749329,1716426682278,-500.0,0.00022739,2]
[327749330,1716426682287,-547.65,0.00022739,2]
[327749331,1716426682297,-1470.65,0.00022739,2]
[327749332,1716426682307,-14731.76,0.00022739,2]
[327749333,1716426682317,-2344.74,0.00022739,2]
[327749334,1716426682326,-500.0,0.00022739,2]
[327749335,1716426682335,-500.0,0.00022739,2]
[327749336,1716426682345,-500.0,0.00022739,2]
[327749337,1716426682354,-1264.37,0.00022739,2]
[327749338,1716426682364,-619.76,0.00022739,2]
[327749339,1716426682377,-500.0,0.00022739,2]
[327749340,1716426682386,-686.11,0.00022739,2]
[327749341,1716426682396,-500.0,0.00022739,2]
[327749342,1716426682405,-546.73,0.00022739,2]
[327749343,1716426682414,-593.48844363,0.00022739,2]
[327749344,1716426682424,-500.0,0.00022739,2]
[327749345,1716426682432,-5594.05,0.00022739,2]
[327749346,1716426682441,-500.0,0.00022739,2]
[327749347,1716426682450,-500.0,0.00022739,2]
[327749348,1716426682459,-500.0,0.00022739,2]
[327749349,1716426682469,-1798.9,0.00022739,2]
[327749350,1716426682478,-500.0,0.00022739,2]
[327749351,1716426682488,-500.0,0.00022739,2]
[327749352,1716426682497,-500.0,0.00022739,2]
[327749353,1716426682506,-529.79924116,0.00022739,2]
[327749354,1716426682516,-500.0,0.00022739,2]
[327749355,1716426682525,-527.03,0.00022739,2]
[327749356,1716426682535,-500.0,0.00022739,2]
[327749357,1716426682544,-500.0,0.00022739,2]
[327749358,1716426682554,-3516.8,0.00022739,2]
[327749359,1716426682563,-500.0,0.00022739,2]
[327749360,1716426682572,-636.78,0.00022739,2]
[327749361,1716426682582,-914.59,0.00022739,2]
[327749362,1716426682591,-500.0,0.00022739,2]
[327749363,1716426682600,-501.64,0.00022739,2]
[327749364,1716426682609,-500.0,0.00022739,2]
[327749365,1716426682619,-500.0,0.00022739,2]
[327749366,1716426682630,-500.0,0.00022739,2]
[327749367,1716426682640,-500.0,0.00022739,2]
[327749368,1716426682649,-500.0,0.00022739,2]
[327749369,1716426682658,-1175.93,0.00022739,2]
[327749370,1716426682667,-500.0,0.00022739,2]
[327749371,1716426682677,-2059.71,0.00022739,2]
[327749372,1716426682687,-957.12,0.00022739,2]
[327749373,1716426682696,-500.0,0.00022739,2]
[327749374,1716426682705,-500.0,0.00022739,2]
[327749375,1716426682714,-500.0,0.00022739,2]
[327749376,1716426682723,-554.50197735,0.00022739,2]
[327749377,1716426682733,-500.0,0.00022739,2]
[327749378,1716426682744,-500.0,0.00022739,2]
[327749379,1716426682754,-1128.5,0.00022739,2]
[327749380,1716426682763,-825.32,0.00022739,2]
[327749381,1716426682773,-500.0,0.00022739,2]
[327749382,1716426682782,-652.34,0.00022739,2]
[327749383,1716426682792,-500.0,0.00022739,2]
[327749384,1716426682802,-500.0,0.00022739,2]
[327749385,1716426682811,-500.0,0.00022739,2]
[327749386,1716426682824,-5743.77,0.00022739,2]
[327749387,1716426682833,-384.54,0.00022739,2]
[327749388,1716426682842,-269.65163282,0.00022739,2]
[327749389,1716426682851,-529.71,0.00022739,2]
[327749390,1716426682860,-663.83,0.00022739,2]
[327749391,1716426682869,-590.14,0.00022739,2]
[327749392,1716426682880,-500.0,0.00022739,2]
[327749393,1716426682889,-1020.99,0.00022739,2]
[327749394,1716426682899,-500.0,0.00022739,2]
[327749395,1716426682909,-500.0,0.00022739,2]
[327749396,1716426682918,-615.9739058,0.00022739,2]
[327749397,1716426682928,-500.0,0.00022739,2]
[327749398,1716426682937,-575.97544175,0.00022739,2]
[327749399,1716426682946,-667.65,0.00022739,2]
[327749400,1716426682955,-740.4,0.00022739,2]
[327749401,1716426682964,-931.25,0.00022739,2]
[327749402,1716426682974,-771.62,0.00022739,2]
[327749403,1716426682983,-500.0,0.00022739,2]
[327749404,1716426682993,-500.0,0.00022739,2]
[327749405,1716426683002,-500.0,0.00022739,2]
[327749406,1716426683012,-1211.63,0.00022739,2]
[327749407,1716426683022,-500.0,0.00022739,2]
[327749408,1716426683031,-500.0,0.00022739,2]
[327749409,1716426683040,-500.0,0.00022739,2]
[327749410,1716426683049,-1055.34,0.00022739,2]
[327749411,1716426683058,-500.0,0.00022739,2]
[327749412,1716426683067,-500.0,0.00022739,2]
[327749413,1716426683076,-5023.58,0.00022739,2]
[327749414,1716426683086,-500.0,0.00022739,2]
[327749415,1716426683095,-500.0,0.00022739,2]
[327749416,1716426683104,-907.73,0.00022739,2]
[327749417,1716426683113,-500.0,0.00022739,2]
[327749418,1716426683123,-6459.85,0.00022739,2]
[327749419,1716426683136,-151.0,0.00022739,7]
[327749420,1716426683145,-500.0,0.00022739,2]
[327749421,1716426683154,-2440.64,0.00022739,2]
[327749422,1716426683163,-500.0,0.00022739,2]
[327749423,1716426683172,-1219.92,0.00022739,2]
[327749424,1716426683181,-500.0,0.00022739,2]
[327749425,1716426683190,-500.0,0.00022739,2]
[327749426,1716426683199,-151.0,0.00022739,7]
[327749427,1716426683208,-500.0,0.00022739,2]
[327749428,1716426683217,-500.0,0.00022739,2]
[327749429,1716426683226,-500.0,0.00022739,2]
[327749430,1716426683235,-500.0,0.00022739,2]
[327749431,1716426683244,-500.0,0.00022739,2]
[327749432,1716426683253,-500.0,0.00022739,2]
[327749433,1716426683262,-997.06,0.00022739,2]
[327749434,1716426683271,-850.39,0.00022739,2]
[327749435,1716426683280,-500.0,0.00022739,2]
[327749436,1716426683289,-500.0,0.00022739,2]
[327749437,1716426683298,-547.26,0.00022739,2]
[327749438,1716426683308,-160.835563,0.00022739,7]
[327749439,1716426683317,-500.0,0.00022739,2]
[327749440,1716426683326,-500.0,0.00022739,2]
[327749441,1716426683335,-2891.8,0.00022739,2]
[327749442,1716426683344,-1548.05,0.00022739,2]
[327749443,1716426683353,-160.835556,0.00022739,7]
[327749444,1716426683362,-247.60592844,0.00022739,2]
[327749445,1716426683372,-500.0,0.00022739,2]
[327749446,1716426683386,-1903.29,0.00022739,2]
[327749447,1716426683396,-562.44698167,0.00022739,2]
[327749448,1716426683406,-500.0,0.00022739,2]
[327749449,1716426683415,-500.0,0.00022739,2]
[327749450,1716426683424,-2114.34,0.00022739,2]
[327749451,1716426683434,-500.60372092,0.00022739,2]
[327749452,1716426683443,-500.0,0.00022739,2]
[327749453,1716426683452,-3529.96,0.00022739,2]
[327749454,1716426683461,-500.0,0.00022739,2]
[327749455,1716426683470,-500.0,0.00022739,2]
[327749456,1716426683480,-500.0,0.00022739,2]
[327749457,1716426683489,-517.55347677,0.00022739,2]
[327749458,1716426683499,-500.0,0.00022739,2]
[327749459,1716426683508,-208.25125372,0.00022739,2]
[327749460,1716426683517,-500.0,0.00022739,2]
[327749461,1716426683526,-500.0,0.00022739,2]
[327749462,1716426683536,-524.88,0.00022739,2]
[327749463,1716426683545,-500.0,0.00022739,2]
[327749464,1716426683554,-1185.63,0.00022739,2]
[327749465,1716426683563,-500.0,0.00022739,2]
[327749466,1716426683572,-572.02,0.00022739,2]
[327749467,1716426683581,-1072.65,0.00022739,2]
[327749468,1716426683590,-500.0,0.00022739,2]
[327749469,1716426683599,-500.0,0.00022739,2]
[327749470,1716426683608,-2912.02,0.00022739,2]
[327749471,1716426683617,-500.0,0.00022739,2]
[327749472,1716426683630,-500.0,0.00022739,2]
[327749473,1716426683639,-500.0,0.00022739,2]
[327749474,1716426683649,-510.3380571,0.00022739,2]
[327749475,1716426683658,-1275.89,0.00022739,2]
[327749476,1716426683667,-500.0,0.00022739,2]
[327749477,1716426683675,-500.0,0.00022739,2]
[327749478,1716426683684,-500.0,0.00022739,2]
[327749479,1716426683693,-500.0,0.00022739,2]
[327749480,1716426683702,-500.0,0.00022739,2]
[327749481,1716426683711,-2786.57,0.00022739,2]
[327749482,1716426683720,-500.0,0.00022739,2]
[327749483,1716426683729,-500.0,0.00022739,2]
[327749484,1716426683739,-500.0,0.00022739,2]
[327749485,1716426683749,-991.14,0.00022739,2]
[327749486,1716426683761,-500.0,0.00022739,2]
[327749487,1716426683771,-500.0,0.00022739,2]
[327749488,1716426683780,-500.0,0.00022739,2]
[327749489,1716426683789,-500.0,0.00022739,2]
[327749490,1716426683798,-523.2825976,0.00022739,2]
[327749491,1716426683809,-1717.570394,0.00022739,7]
[327749492,1716426683818,-992.65,0.00022739,2]
[327749493,1716426683827,-500.0,0.00022739,2]
[327749494,1716426683838,-823.09,0.00022739,2]
[327749495,1716426683847,-500.0,0.00022739,2]
[327749496,1716426683857,-945.3,0.00022739,2]
[327749497,1716426683866,-1118.48,0.00022739,2]
[327749498,1716426683878,-500.0,0.00022739,2]
[327749499,1716426683887,-1735.83,0.00022739,2]
[327749500,1716426683897,-300.369591,0.00022739,7]
[327749501,1716426683906,-500.0,0.00022739,2]
[327749502,1716426683915,-1717.570402,0.00022739,7]
[327749503,1716426683924,-847.5,0.00022739,2]
[327749504,1716426683934,-581.15,0.00022739,2]
[327749505,1716426683944,-500.0,0.00022739,2]
[327749506,1716426683953,-332.730865,0.00022739,7]
[327749507,1716426683962,-515.36624628,0.00022739,2]
[327749508,1716426683971,-507.7248687,0.00022739,2]
[327749509,1716426683980,-500.0,0.00022739,2]
[327749510,1716426683989,-500.0,0.00022739,2]
[327749511,1716426683998,-1281.74,0.00022739,2]
[327749512,1716426684008,-332.730873,0.00022739,7]
[327749513,1716426684017,-500.0,0.00022739,2]
[327749514,1716426684026,-1543.8,0.00022739,2]
[327749515,1716426684036,-500.0,0.00022739,2]
[327749516,1716426684046,-500.0,0.00022739,2]
[327749517,1716426684055,-1159.16,0.00022739,2]
[327749518,1716426684065,-500.0,0.00022739,2]
[327749519,1716426684074,-500.0,0.00022739,2]
[327749520,1716426684083,-500.0,0.00022739,2]
[327749521,1716426684092,-1060.7,0.00022739,2]
[327749522,1716426684101,-1455.98,0.00022739,2]
[327749523,1716426684111,-1182.68,0.00022739,2]
[327749524,1716426684120,-241.705779,0.00022739,7]
[327749525,1716426684132,-500.0,0.00022739,2]
[327749526,1716426684141,-500.0,0.00022739,2]
[327749527,1716426684150,-816.83,0.00022739,2]
[327749528,1716426684159,-500.0,0.00022739,2]
[327749529,1716426684168,-500.0,0.00022739,2]
[327749530,1716426684178,-500.0,0.00022739,2]
[327749531,1716426684188,-500.0,0.00022739,2]
[327749532,1716426684197,-1209.43,0.00022739,2]
[327749533,1716426684206,-241.705775,0.00022739,7]
[327749534,1716426684215,-500.0,0.00022739,2]
[327749535,1716426684225,-500.0,0.00022739,2]
[327749536,1716426684234,-1071.08,0.00022739,2]
[327749537,1716426684243,-730.73,0.00022739,2]
[327749538,1716426684252,-500.0,0.00022739,2]
[327749539,1716426684261,-950.7,0.00022739,2]
[327749540,1716426684270,-1755.43,0.00022739,2]
[327749541,1716426684280,-500.0,0.00022739,2]
[327749542,1716426684289,-295.58766178,0.00022739,2]
[327749543,1716426684298,-500.0,0.00022739,2]
[327749544,1716426684307,-977.89,0.00022739,2]
[327749545,1716426684317,-500.0,0.00022739,2]
[327749546,1716426684327,-500.0,0.00022739,2]
[327749547,1716426684336,-500.0,0.00022739,2]
[327749548,1716426684345,-990.31,0.00022739,2]
[327749549,1716426684355,-500.0,0.00022739,2]
[327749550,1716426684364,-973.33,0.00022739,2]
[327749551,1716426684374,-974.99,0.00022739,2]
[327749552,1716426684386,-228.81829837,0.00022739,2]
[327749553,1716426684395,-500.0,0.00022739,2]
[327749554,1716426684404,-500.0,0.00022739,2]
[327749555,1716426684413,-765.17,0.00022739,2]
[327749556,1716426684424,-500.0,0.00022739,2]
[327749557,1716426684433,-500.0,0.00022739,2]
[327749558,1716426684442,-3405.53,0.00022739,2]
[327749559,1716426684452,-500.0,0.00022739,2]
[327749560,1716426684462,-1323.69,0.00022739,2]
[327749561,1716426684472,-500.0,0.00022739,2]
[327749562,1716426684481,-500.0,0.00022739,2]
[327749563,1716426684490,-1486.42,0.00022739,2]
[327749564,1716426684499,-500.0,0.00022739,2]
[327749565,1716426684509,-500.0,0.00022739,2]
[327749566,1716426684518,-151.0,0.00022739,7]
[327749567,1716426684527,-1000.0,0.00022739,2]
[327749568,1716426684536,-513.14605154,0.00022739,2]
[327749569,1716426684545,-500.0,0.00022739,2]
[327749570,1716426684555,-500.0,0.00022739,2]
[327749571,1716426684564,-5139.51218112,0.00022809,2]
[327749572,1716426684574,-1100.0,0.00022876,2]
[327749573,1716426684583,-900.0,0.00022876,2]
[327749574,1716426684592,-650.0,0.00022973,2]
[327749575,1716426684602,-10578.6773895,0.00023,2]
[327749576,1716426684611,-4747.0,0.00023,2]
[327749577,1716426684620,-2800.0,0.00023,2]
[327749578,1716426684633,-450.93007133,0.00023,4]
[327749579,1716426684643,-150.0,0.00023,3]
[327749580,1716426684653,-2457.2324,0.00023,2]
[327749581,1716426684663,-877.35,0.00023012,2]
[327749582,1716426684672,-877.35,0.00023012,2]
[327749583,1716426684682,-151.36816686,0.00023013,2]
[327749584,1716426684692,-513.65341549,0.00023013,2]
[327749585,1716426684701,-513.45854356,0.00023013,2]
[327749586,1716426684710,-500.0,0.00023013,2]
[327749587,1716426684719,-500.0,0.00023013,2]
[327749588,1716426684729,-500.0,0.00023013,2]
[327749589,1716426684739,-1630.4,0.00023013,2]
[327749590,1716426684752,-511.19144735,0.00023013,2]
[327749591,1716426684761,-500.0,0.00023013,2]
[327749592,1716426684769,-500.0,0.00023013,2]
[327749593,1716426684778,-500.0,0.00023013,2]
[327749594,1716426684789,-500.0,0.00023013,2]
[327749595,1716426684798,-384.18,0.00023013,2]
[327749596,1716426684807,-500.0,0.00023013,2]
[327749597,1716426684816,-1975.97,0.00023013,2]
[327749598,1716426684825,-500.0,0.00023013,2]
[327749599,1716426684836,-867.84,0.00023013,2]
[327749600,1716426684845,-369.98569699,0.00023013,2]
[327749601,1716426684855,-500.0,0.00023013,2]
[327749602,1716426684864,-500.0,0.00023013,2]
[327749603,1716426684873,-500.0,0.00023013,2]
[327749604,1716426684885,-500.0,0.00023013,2]
[327749605,1716426684895,-500.0,0.00023013,2]
[327749606,1716426684905,-500.0,0.00023013,2]
[327749607,1716426684914,-500.0,0.00023013,2]
[327749608,1716426684924,-1023.97,0.00023013,2]
[327749609,1716426684933,-500.0,0.00023013,2]
[327749610,1716426684943,-1186.79,0.00023013,2]
[327749611,1716426684952,-515.88967533,0.00023013,2]
[327749612,1716426684960,-500.0,0.00023013,2]
[327749613,1716426684970,-500.0,0.00023013,2]
[327749614,1716426684979,-500.0,0.00023013,2]
[327749615,1716426684988,-500.0,0.00023013,2]
[327749616,1716426684997,-500.0,0.00023013,2]
[327749617,1716426685007,-500.0,0.00023013,2]
[327749618,1716426685016,-500.0,0.00023013,2]
[327749619,1716426685025,-500.0,0.00023013,2]
[327749620,1716426685034,-500.89243556,0.00023013,2]
[327749621,1716426685043,-500.0,0.00023013,2]
[327749622,1716426685052,-500.0,0.00023013,2]
[327749623,1716426685061,-500.0,0.00023013,2]
[327749624,1716426685071,-500.0,0.00023013,2]
[327749625,1716426685081,-500.0,0.00023013,2]
[327749626,1716426685090,-500.0,0.00023013,2]
[327749627,1716426685099,-500.0,0.00023013,2]
[327749628,1716426685265,-500.0,0.00023013,2]
[327749629,1716426685293,-500.0,0.00023013,2]
[327749630,1716426685303,-500.0,0.00023013,2]
[327749631,1716426685313,-325.09023735,0.00023013,2]
[327749632,1716426685323,-500.0,0.00023013,2]
[327749633,1716426685332,-500.0,0.00023013,2]
[327749634,1716426685342,-500.0,0.00023013,2]
[327749635,1716426685352,-500.0,0.00023013,2]
[327749636,1716426685362,-500.0,0.00023013,2]
[327749637,1716426685372,-500.0,0.00023013,2]
[327749638,1716426685389,-500.0,0.00023013,2]
[327749639,1716426685399,-500.0,0.00023013,2]
[327749640,1716426685409,-500.0,0.00023013,2]
[327749641,1716426685419,-952.5,0.00023013,2]
[327749642,1716426685430,-500.0,0.00023013,2]
[327749643,1716426685440,-500.0,0.00023013,2]
[327749644,1716426685451,-500.0,0.00023013,2]
[327749645,1716426685462,-500.0,0.00023013,2]
[327749646,1716426685473,-500.0,0.00023013,2]
[327749647,1716426685482,-500.0,0.00023013,2]
[327749648,1716426685493,-500.0,0.00023013,2]
[327749649,1716426685503,-500.0,0.00023013,2]
[327749650,1716426685513,-500.0,0.00023013,2]
[327749651,1716426685523,-513.37905543,0.00023013,2]
[327749652,1716426685533,-500.0,0.00023013,2]
[327749653,1716426685544,-500.0,0.00023013,2]
[327749654,1716426685554,-500.0,0.00023013,2]
[327749655,1716426685565,-582.95,0.00023013,2]
[327749656,1716426685575,-1240.53,0.00023013,2]
[327749657,1716426685585,-500.0,0.00023013,2]
[327749658,1716426685595,-500.0,0.00023013,2]
[327749659,1716426685604,-523.21,0.00023013,2]
[327749660,1716426685614,-500.0,0.00023013,2]
[327749661,1716426685624,-500.0,0.00023013,2]
[327749662,1716426685641,-229.90985116,0.00023013,2]
[327749663,1716426685650,-500.0,0.00023013,2]
[327749664,1716426685660,-500.0,0.00023013,2]
[327749665,1716426685670,-500.0,0.00023013,2]
[327749666,1716426685680,-532.29086674,0.00023013,2]
[327749667,1716426685690,-500.0,0.00023013,2]
[327749668,1716426685700,-500.0,0.00023013,2]
[327749669,1716426685710,-500.0,0.00023013,2]
[327749670,1716426685720,-500.0,0.00023013,2]
[327749671,1716426685730,-500.0,0.00023013,2]
[327749672,1716426685740,-151.0,0.00023013,7]
[327749673,1716426685751,-500.0,0.00023013,2]
[327749674,1716426685767,-500.0,0.00023013,2]
[327749675,1716426685776,-500.0,0.00023013,2]
[327749676,1716426685787,-500.0,0.00023013,2]
[327749677,1716426685796,-500.0,0.00023013,2]
[327749678,1716426685805,-741.22,0.00023013,2]
[327749679,1716426685815,-500.0,0.00023013,2]
[327749680,1716426685824,-511.81184809,0.00023013,2]
[327749681,1716426685834,-500.0,0.00023013,2]
[327749682,1716426685844,-500.0,0.00023013,2]
[327749683,1716426685854,-500.0,0.00023013,2]
[327749684,1716426685863,-500.0,0.00023013,2]
[327749685,1716426685872,-500.0,0.00023013,2]
[327749686,1716426685887,-500.0,0.00023013,2]
[327749687,1716426685897,-500.0,0.00023013,2]